[Event "Championnat du monde jeunes U12F"]
[Date "2024.11.18"]
[White "Bogomolnikova, Zlata"]
[Black "Rzadkowska, Kaja"]
[WhiteElo "1628"]
[BlackElo "1798"]
[Round "4.18"]
[Result "0-1"]
[TimeControl "5400+30"]

1. d4 {[%clk 1:30:56]} 1... Nf6 {[%clk 1:30:55]} 2. c4 {[%clk 1:31:18]} 2... e6
{[%clk 1:31:21]} 3. Nc3 {[%clk 1:31:42]} 3... Bb4 {[%clk 1:31:34]} 4. Qc2 {[%clk
1:32:01]} 4... d6 {[%clk 1:31:29]} 5. a3 {[%clk 1:30:47]} 5... Bxc3+ {[%clk
1:31:14]} 6. Qxc3 {[%clk 1:30:32]} 6... b6 {[%clk 1:28:42]} 7. Bg5 {[%clk
1:27:58]} 7... Bb7 {[%clk 1:27:46]} 8. e3 {[%clk 1:26:44]} 8... Nbd7 {[%clk
1:23:05]} 9. f3 {[%clk 1:24:47]} 9... d5 {[%clk 1:16:39]} 10. Bd3 {[%clk
1:14:34]} 10... h6 {[%clk 1:14:39]} 11. Bh4 {[%clk 1:14:04]} 11... O-O {[%clk
1:06:09]} 12. Ne2 {[%clk 1:11:11]} 12... c5 {[%clk 1:03:06]} 13. Qc2 {[%clk
1:04:27]} 13... Rc8 {[%clk 0:55:31]} 14. Qa4 {[%clk 1:00:35]} 14... dxc4 {[%clk
0:47:39]} 15. Bxc4 {[%clk 0:59:25]} 15... Bc6 {[%clk 0:44:24]} 16. Bb5 {[%clk
0:57:38]} 16... Bxb5 {[%clk 0:43:48]} 17. Qxb5 {[%clk 0:57:50]} 17... cxd4
{[%clk 0:42:10]} 18. Nxd4 {[%clk 0:57:21]} 18... Rc5 {[%clk 0:41:23]} 19. Qb3
{[%clk 0:55:10]} 19... Rh5 {[%clk 0:37:31]} 20. Bg3 {[%clk 0:53:55]} 20... Nc5
{[%clk 0:34:36]} 21. Qc2 {[%clk 0:51:56]} 21... Nd5 {[%clk 0:32:38]} 22. Qe2
{[%clk 0:48:41]} 22... Qg5 {[%clk 0:19:37]} 23. f4 {[%clk 0:46:41]} 23... Qxg3+
{[%clk 0:18:56]} 24. hxg3 {[%clk 0:34:06]} 24... Rxh1+ {[%clk 0:19:23]} 25. Kf2
{[%clk 0:34:02]} 25... Rxa1 {[%clk 0:19:28]} 26. e4 {[%clk 0:32:29]} 26... Nf6
{[%clk 0:19:12]} 27. e5 {[%clk 0:32:33]} 27... Nd5 {[%clk 0:18:29]} 28. f5
{[%clk 0:28:36]} 28... Rb1 {[%clk 0:16:28]} 29. Kf3 {[%clk 0:27:50]} 29... Nd7
{[%clk 0:13:33]} 30. g4 {[%clk 0:27:11]} 30... Re8 {[%clk 0:11:56]} 31. Qb5
{[%clk 0:25:18]} 31... Nxe5+ {[%clk 0:09:20]} 32. Kg3 {[%clk 0:24:21]} 32... Re7
{[%clk 0:08:07]} 33. fxe6 {[%clk 0:24:05]} 33... fxe6 {[%clk 0:08:25]} 34. Nxe6
{[%clk 0:24:03]} 34... Rxe6 {[%clk 0:08:23]} 35. Qxd5 {[%clk 0:24:25]} 35... Kf7
{[%clk 0:08:43]} 36. Qb7+ {[%clk 0:24:05]} 36... Kf6 {[%clk 0:08:39]} 37. Qc8
{[%clk 0:22:34]} 37... Rxb2 {[%clk 0:08:15]} 38. Qd8+ {[%clk 0:22:49]} 38... Kf7
{[%clk 0:07:04]} 39. Qc7+ {[%clk 0:22:47]} 39... Re7 {[%clk 0:07:00]} 40. Qc8
{[%clk 0:22:14]} 40... Rb3+ {[%clk 0:05:21]} 41. Kh2 {[%clk 0:20:46]} 41... g6
{[%clk 0:05:12]} 42. Qc1 {[%clk 0:19:45]} 42... Kg7 {[%clk 0:01:32]} 43. Qa1
{[%clk 0:19:42]} 43... Kh7 {[%clk 0:01:44]} 44. Qd4 {[%clk 0:18:48]} 44... Rd3
{[%clk 0:01:30]} 45. Qf4 {[%clk 0:18:10]} 45... a5 {[%clk 0:01:06]} 46. Kg1
{[%clk 0:17:16]} 46... Rxa3 {[%clk 0:01:16]} 47. Qd4 {[%clk 0:16:51]} 47... Rd3
{[%clk 0:01:01]} 48. Qxb6 {[%clk 0:16:39]} 48... Nxg4 {[%clk 0:00:59]} 49. g3
{[%clk 0:16:27]} 49... Rxg3+ {[%clk 0:00:42]} 50. Kf1 {[%clk 0:16:48]} 50...
Ne3+ {[%clk 0:00:49]} 51. Kf2 {[%clk 0:16:50]} 51... Rg2+ {[%clk 0:00:48]} 52.
Kf3 {[%clk 0:17:05]} 52... Rg5 {[%clk 0:01:05]} 53. Qd6 {[%clk 0:16:40]} 53...
Nf5 {[%clk 0:01:06]} 54. Qd8 {[%clk 0:16:05]} 54... a4 {[%clk 0:01:12]} 55. Kf4
{[%clk 0:16:03]} 55... Rg1 {[%clk 0:01:11]} 56. Kf3 {[%clk 0:16:12]} 56... Rb1
{[%clk 0:01:18]} 57. Qa8 {[%clk 0:15:57]} 57... Rb3+ {[%clk 0:01:23]} 58. Kf4
{[%clk 0:16:09]} 58... Rb4+ {[%clk 0:01:43]} 59. Kf3 {[%clk 0:16:20]} 59... Re3+
{[%clk 0:01:54]} 60. Kg2 {[%clk 0:16:36]} 60... Rb2+ {[%clk 0:02:13]} 0-1

[Variant "Standard"]
[Site "Europe Echecs"]

[Event "Championnat du monde jeunes U12F"]
[Date "2024.11.18"]
[White "Anu, Bayart-Uchral"]
[Black "Jacome Revelo, Daniela Alexandra"]
[WhiteElo "1624"]
[BlackElo "1764"]
[Round "4.19"]
[Result "1-0"]
[TimeControl "5400+30"]

1. d4 {[%clk 1:30:57]} 1... Nf6 {[%clk 1:30:51]} 2. c4 {[%clk 1:31:10]} 2... e5
{[%clk 1:30:46]} 3. dxe5 {[%clk 1:31:12]} 3... Ng4 {[%clk 1:30:12]} 4. e4 {[%clk
1:31:15]} 4... Nxe5 {[%clk 1:30:00]} 5. f4 {[%clk 1:31:09]} 5... Nec6 {[%clk
1:28:53]} 6. a3 {[%clk 1:30:29]} 6... a5 {[%clk 1:25:33]} 7. Be3 {[%clk
1:29:22]} 7... Be7 {[%clk 1:22:30]} 8. Nc3 {[%clk 1:26:22]} 8... O-O {[%clk
1:17:06]} 9. Nf3 {[%clk 1:21:10]} 9... d6 {[%clk 1:15:08]} 10. Bd3 {[%clk
1:20:46]} 10... Nd7 {[%clk 1:11:24]} 11. O-O {[%clk 1:18:56]} 11... Nc5 {[%clk
1:08:18]} 12. Bc2 {[%clk 1:12:35]} 12... Bf6 {[%clk 1:02:13]} 13. Qd2 {[%clk
1:09:11]} 13... Bxc3 {[%clk 0:59:06]} 14. Qxc3 {[%clk 1:09:32]} 14... Qe7 {[%clk
0:55:30]} 15. Nd2 {[%clk 1:07:40]} 15... f5 {[%clk 0:49:02]} 16. exf5 {[%clk
0:46:47]} 16... Bxf5 {[%clk 0:43:39]} 17. Bxf5 {[%clk 0:46:55]} 17... Rxf5
{[%clk 0:43:58]} 18. Rae1 {[%clk 0:46:22]} 18... Qf7 {[%clk 0:41:15]} 19. g4
{[%clk 0:28:06]} 19... Rf6 {[%clk 0:41:07]} 20. f5 {[%clk 0:27:02]} 20... Qd7
{[%clk 0:35:53]} 21. Bxc5 {[%clk 0:26:06]} 21... dxc5 {[%clk 0:35:41]} 22. Ne4
{[%clk 0:26:30]} 22... Rh6 {[%clk 0:30:49]} 23. Qg3 {[%clk 0:18:14]} 23... Qd4+
{[%clk 0:25:29]} 24. Kh1 {[%clk 0:18:16]} 24... g5 {[%clk 0:23:17]} 25. Nxg5
{[%clk 0:15:36]} 25... Qxb2 {[%clk 0:20:23]} 26. Ne6 {[%clk 0:13:27]} 26... Nd4
{[%clk 0:16:33]} 27. Qe5 {[%clk 0:12:20]} 27... Rxe6 {[%clk 0:13:16]} 28. fxe6
{[%clk 0:12:33]} 28... Re8 {[%clk 0:13:16]} 29. Qg5+ {[%clk 0:12:50]} 29... Kh8
{[%clk 0:13:37]} 30. Qf6+ {[%clk 0:13:15]} 30... Kg8 {[%clk 0:14:00]} 31. Qf7+
{[%clk 0:13:38]} 1-0

[Variant "Standard"]
[Site "Europe Echecs"]

[Event "Championnat du monde jeunes U12F"]
[Date "2024.11.18"]
[White "Stepankova, Linda"]
[Black "Aadya Ranganath"]
[WhiteElo "1624"]
[BlackElo "1753"]
[Round "4.20"]
[Result "0-1"]
[TimeControl "5400+30"]

1. e4 {[%clk 1:30:58]} 1... e5 {[%clk 1:30:53]} 2. Nf3 {[%clk 1:31:23]} 2... Nc6
{[%clk 1:31:18]} 3. Bc4 {[%clk 1:31:48]} 3... Bc5 {[%clk 1:31:06]} 4. b4 {[%clk
1:31:01]} 4... Bxb4 {[%clk 1:31:26]} 5. c3 {[%clk 1:31:26]} 5... Be7 {[%clk
1:31:52]} 6. d4 {[%clk 1:10:46]} 6... Na5 {[%clk 1:30:30]} 7. Nxe5 {[%clk
1:06:05]} 7... Nxc4 {[%clk 1:30:46]} 8. Nxc4 {[%clk 1:06:17]} 8... d5 {[%clk
1:31:07]} 9. exd5 {[%clk 1:03:48]} 9... Qxd5 {[%clk 1:31:25]} 10. Ne3 {[%clk
1:04:10]} 10... Qa5 {[%clk 1:30:25]} 11. O-O {[%clk 1:03:32]} 11... Nf6 {[%clk
1:28:20]} 12. Re1 {[%clk 0:59:43]} 12... O-O {[%clk 1:24:12]} 13. c4 {[%clk
0:52:14]} 13... Bb4 {[%clk 1:17:05]} 14. Bd2 {[%clk 0:50:52]} 14... Rd8 {[%clk
1:12:16]} 15. Bxb4 {[%clk 0:35:52]} 15... Qxb4 {[%clk 1:10:54]} 16. Re2 {[%clk
0:32:50]} 16... Be6 {[%clk 1:05:31]} 17. d5 {[%clk 0:31:08]} 17... c6 {[%clk
1:02:58]} 18. Nd2 {[%clk 0:28:11]} 18... cxd5 {[%clk 1:00:11]} 19. Rb1 {[%clk
0:25:22]} 19... Qd6 {[%clk 0:56:21]} 20. cxd5 {[%clk 0:23:39]} 20... Nxd5 {[%clk
0:54:46]} 21. Nxd5 {[%clk 0:18:12]} 21... Qxd5 {[%clk 0:54:56]} 22. Rb2 {[%clk
0:17:03]} 22... Bg4 {[%clk 0:54:43]} 23. f3 {[%clk 0:17:03]} 23... Qd4+ {[%clk
0:55:08]} 24. Kf1 {[%clk 0:17:19]} 24... Qxb2 {[%clk 0:55:29]} 25. fxg4 {[%clk
0:17:38]} 25... Rac8 {[%clk 0:55:19]} 26. Qa4 {[%clk 0:17:10]} 26... Qc1+ {[%clk
0:54:58]} 0-1

[Variant "Standard"]
[Site "Europe Echecs"]

[Event "Championnat du monde jeunes U12F"]
[Date "2024.11.18"]
[White "Zavivaeva, Angelina"]
[Black "Sabou, Stefania Theodora"]
[WhiteElo "1499"]
[BlackElo "1736"]
[Round "4.21"]
[Result "1/2-1/2"]
[TimeControl "5400+30"]

1. e4 {[%clk 1:30:59]} 1... c5 {[%clk 1:30:43]} 2. Nf3 {[%clk 1:31:25]} 2... Nc6
{[%clk 1:30:58]} 3. d4 {[%clk 1:31:50]} 3... cxd4 {[%clk 1:31:22]} 4. Nxd4
{[%clk 1:32:19]} 4... g6 {[%clk 1:31:36]} 5. Nc3 {[%clk 1:32:32]} 5... Bg7
{[%clk 1:31:55]} 6. Be3 {[%clk 1:32:58]} 6... Nf6 {[%clk 1:32:13]} 7. Bc4 {[%clk
1:33:24]} 7... O-O {[%clk 1:32:30]} 8. Bb3 {[%clk 1:33:50]} 8... d6 {[%clk
1:32:49]} 9. f3 {[%clk 1:34:16]} 9... Bd7 {[%clk 1:32:23]} 10. Qd2 {[%clk
1:34:31]} 10... a6 {[%clk 1:31:35]} 11. O-O-O {[%clk 1:34:35]} 11... Na5 {[%clk
1:30:13]} 12. Kb1 {[%clk 1:33:44]} 12... b5 {[%clk 1:25:06]} 13. g4 {[%clk
1:32:28]} 13... Rb8 {[%clk 1:17:51]} 14. h4 {[%clk 1:22:11]} 14... Nxb3 {[%clk
1:12:32]} 15. cxb3 {[%clk 1:17:10]} 15... h5 {[%clk 0:53:28]} 16. gxh5 {[%clk
1:12:25]} 16... Nxh5 {[%clk 0:53:55]} 17. Rdg1 {[%clk 1:12:32]} 17... e5 {[%clk
0:45:29]} 18. Nde2 {[%clk 1:07:09]} 18... Qf6 {[%clk 0:43:34]} 19. Rf1 {[%clk
0:55:06]} 19... Bc6 {[%clk 0:42:08]} 20. Bg5 {[%clk 0:48:41]} 20... Qe6 {[%clk
0:42:11]} 21. Rd1 {[%clk 0:48:36]} 21... b4 {[%clk 0:32:10]} 22. Nd5 {[%clk
0:46:51]} 22... Bxd5 {[%clk 0:30:12]} 23. Qxd5 {[%clk 0:46:16]} 23... Qxd5
{[%clk 0:29:46]} 24. Rxd5 {[%clk 0:46:21]} 24... f6 {[%clk 0:30:13]} 25. Be3
{[%clk 0:46:15]} 25... Rfd8 {[%clk 0:29:58]} 26. Rhd1 {[%clk 0:45:38]} 26... Bf8
{[%clk 0:30:17]} 27. Ra5 {[%clk 0:38:56]} 27... Ra8 {[%clk 0:30:18]} 28. Bb6
{[%clk 0:36:14]} 28... Rdc8 {[%clk 0:29:06]} 29. Rc1 {[%clk 0:25:57]} 29... Bh6
{[%clk 0:22:08]} 30. Rc4 {[%clk 0:21:08]} 30... Rxc4 {[%clk 0:20:53]} 31. bxc4
{[%clk 0:21:36]} 31... Kf7 {[%clk 0:20:55]} 32. Rd5 {[%clk 0:19:47]} 32... Ke6
{[%clk 0:21:03]} 33. b3 {[%clk 0:16:53]} 33... Bf8 {[%clk 0:19:01]} 34. Kc2
{[%clk 0:15:02]} 34... f5 {[%clk 0:16:46]} 35. Kd3 Be7 {[%clk 0:16:00]} 36. Bf2
{[%clk 0:09:52]} 36... a5 {[%clk 0:12:25]} 37. Rb5 {[%clk 0:07:24]} 37... Bd8
{[%clk 0:12:31]} 38. Bb6 {[%clk 0:06:21]} 38... Bxb6 {[%clk 0:12:16]} 39. Rxb6
{[%clk 0:06:50]} 39... Kd7 {[%clk 0:09:41]} 40. Rb7+ {[%clk 0:05:45]} 40... Ke6
{[%clk 0:10:09]} 41. Rb5 {[%clk 0:04:44]} 41... Ra7 {[%clk 0:08:37]} 42. Ke3
{[%clk 0:03:01]} 42... f4+ {[%clk 0:08:42]} 43. Kf2 {[%clk 0:02:54]} 43... Nf6
{[%clk 0:08:47]} 44. Kg2 {[%clk 0:01:07]} 1/2-1/2

[Variant "Standard"]
[Site "Europe Echecs"]

[Event "Championnat du monde jeunes U12F"]
[Date "2024.11.18"]
[White "Alcantara, Levanah"]
[Black "Hanya Shah"]
[WhiteElo "1753"]
[BlackElo "1888"]
[Round "4.22"]
[Result "0-1"]
[TimeControl "5400+30"]

1. d4 {[%clk 1:30:58]} 1... Nf6 {[%clk 1:30:55]} 2. Bg5 {[%clk 1:31:02]} 2... e6
{[%clk 1:30:57]} 3. e4 {[%clk 1:31:06]} 3... h6 {[%clk 1:31:11]} 4. Bxf6 {[%clk
1:31:20]} 4... Qxf6 {[%clk 1:31:31]} 5. Nf3 {[%clk 1:29:18]} 5... d5 {[%clk
1:31:46]} 6. e5 {[%clk 1:28:19]} 6... Qd8 {[%clk 1:32:08]} 7. Bd3 {[%clk
1:27:28]} 7... c5 {[%clk 1:30:37]} 8. c3 {[%clk 1:27:10]} 8... Qb6 {[%clk
1:27:03]} 9. Qd2 {[%clk 1:25:21]} 9... c4 {[%clk 1:24:08]} 10. Be2 {[%clk
1:23:00]} 10... Be7 {[%clk 1:20:56]} 11. O-O {[%clk 1:20:30]} 11... O-O {[%clk
1:18:03]} 12. Kh1 {[%clk 1:07:30]} 12... Nd7 {[%clk 1:13:15]} 13. g4 {[%clk
1:01:10]} 13... f6 {[%clk 1:06:31]} 14. exf6 {[%clk 0:59:05]} 14... Nxf6 {[%clk
1:06:27]} 15. Ne5 {[%clk 0:56:08]} 15... Ne4 {[%clk 1:02:15]} 16. Qc2 {[%clk
0:51:56]} 16... Rxf2 {[%clk 0:42:07]} 17. Rxf2 {[%clk 0:51:58]} 17... Nxf2+
{[%clk 0:42:31]} 18. Kg2 {[%clk 0:52:11]} 18... Bd6 {[%clk 0:33:18]} 19. Ng6
{[%clk 0:26:59]} 19... Ne4 {[%clk 0:26:31]} 20. Nd2 {[%clk 0:26:16]} 20... Bd7
{[%clk 0:19:22]} 21. Rf1 {[%clk 0:22:56]} 21... Be8 {[%clk 0:16:59]} 22. Nf4
{[%clk 0:19:20]} 22... Bxf4 {[%clk 0:16:41]} 23. Rxf4 {[%clk 0:19:29]} 23... Bg6
{[%clk 0:17:03]} 24. Qc1 {[%clk 0:16:09]} 24... e5 {[%clk 0:16:31]} 25. Rf1
{[%clk 0:11:27]} 25... exd4 {[%clk 0:16:45]} 26. Nxe4 {[%clk 0:10:36]} 26...
Bxe4+ {[%clk 0:17:04]} 27. Bf3 {[%clk 0:10:42]} 27... d3 {[%clk 0:15:00]} 28.
Qd2 {[%clk 0:09:09]} 28... Re8 {[%clk 0:13:32]} 29. Re1 {[%clk 0:05:29]} 29...
Qe6 {[%clk 0:10:37]} 30. Kf1 {[%clk 0:05:09]} 30... Rf8 {[%clk 0:09:53]} 31. Qe3
{[%clk 0:03:44]} 31... Qxg4 0-1

[Variant "Standard"]
[Site "Europe Echecs"]

[Event "Championnat du monde jeunes U12F"]
[Date "2024.11.18"]
[White "Siskou, Evangelia"]
[Black "Wang, Tianmu"]
[WhiteElo "1884"]
[BlackElo "1640"]
[Round "4.23"]
[Result "1/2-1/2"]
[TimeControl "5400+30"]

1. c4 {[%clk 1:30:55]} 1... e5 {[%clk 1:30:49]} 2. g3 {[%clk 1:31:05]} 2... Nf6
{[%clk 1:30:51]} 3. Bg2 {[%clk 1:31:14]} 3... Bc5 {[%clk 1:29:52]} 4. Nc3 {[%clk
1:29:58]} 4... Nc6 {[%clk 1:28:48]} 5. a3 {[%clk 1:16:58]} 5... a5 {[%clk
1:27:16]} 6. e3 {[%clk 1:17:17]} 6... O-O {[%clk 1:25:30]} 7. Nge2 {[%clk
1:17:09]} 7... Re8 {[%clk 1:23:59]} 8. O-O {[%clk 1:15:33]} 8... d6 {[%clk
1:21:47]} 9. d4 {[%clk 1:11:34]} 9... exd4 {[%clk 1:20:46]} 10. exd4 {[%clk
1:11:51]} 10... Ba7 {[%clk 1:14:36]} 11. h3 {[%clk 1:07:59]} 11... Bf5 {[%clk
1:09:29]} 12. g4 {[%clk 1:04:52]} 12... Bg6 {[%clk 1:03:28]} 13. Kh1 {[%clk
0:56:21]} 13... Ne4 {[%clk 0:54:38]} 14. Nxe4 {[%clk 0:39:40]} 14... Bxe4 {[%clk
0:54:40]} 15. f3 {[%clk 0:40:05]} 15... Bg6 {[%clk 0:54:35]} 16. b3 {[%clk
0:34:03]} 16... d5 {[%clk 0:47:18]} 17. Bb2 {[%clk 0:32:39]} 17... Re3 {[%clk
0:41:15]} 18. Nf4 {[%clk 0:28:49]} 18... dxc4 {[%clk 0:36:51]} 19. Nxg6 {[%clk
0:23:21]} 19... hxg6 {[%clk 0:34:25]} 20. d5 {[%clk 0:22:05]} 20... Ne5 {[%clk
0:26:13]} 21. Bxe5 {[%clk 0:19:30]} 21... Rxe5 {[%clk 0:26:23]} 22. f4 {[%clk
0:18:14]} 22... Re3 {[%clk 0:25:41]} 23. bxc4 {[%clk 0:18:04]} 23... Qh4 {[%clk
0:24:32]} 24. Rf3 {[%clk 0:17:19]} 24... Rae8 {[%clk 0:24:29]} 25. Rxe3 {[%clk
0:16:32]} 25... Rxe3 {[%clk 0:22:36]} 26. Qd2 {[%clk 0:14:34]} 26... Qg3 {[%clk
0:20:33]} 27. Rf1 {[%clk 0:12:06]} 27... Rxa3 {[%clk 0:18:47]} 28. d6 {[%clk
0:08:26]} 28... cxd6 {[%clk 0:14:59]} 29. Qxd6 {[%clk 0:06:08]} 29... Ra2 {[%clk
0:13:07]} 30. Qd5 {[%clk 0:05:57]} 30... Be3 {[%clk 0:12:25]} 31. Qe4 {[%clk
0:01:47]} 31... Rf2 {[%clk 0:10:07]} 32. Rxf2 {[%clk 0:00:55]} 32... Qxf2 {[%clk
0:10:17]} 33. Kh2 {[%clk 0:01:09]} 33... Bxf4+ {[%clk 0:08:34]} 34. Kh1 {[%clk
0:01:11]} 34... Qg3 {[%clk 0:07:48]} 35. Kg1 {[%clk 0:00:54]} 35... Qe3+ {[%clk
0:07:29]} 36. Qxe3 {[%clk 0:00:47]} 36... Bxe3+ {[%clk 0:07:50]} 37. Kf1 {[%clk
0:01:15]} 37... b6 {[%clk 0:08:10]} 38. Bc6 {[%clk 0:01:30]} 38... Kf8 {[%clk
0:07:24]} 39. Ke2 {[%clk 0:01:51]} 39... Bc5 {[%clk 0:07:38]} 40. Kf3 {[%clk
0:01:12]} 40... f5 {[%clk 0:07:08]} 41. Kf4 {[%clk 0:00:49]} 41... fxg4 {[%clk
0:05:16]} 42. hxg4 {[%clk 0:00:52]} 42... Ke7 {[%clk 0:05:19]} 43. Kg5 {[%clk
0:00:52]} 43... Kd6 {[%clk 0:05:20]} 44. Bb5 {[%clk 0:00:51]} 44... Bd4 {[%clk
0:05:37]} 45. Kf4 {[%clk 0:00:40]} 45... Kc5 {[%clk 0:05:43]} 46. Ke4 {[%clk
0:00:44]} 46... Ba1 {[%clk 0:05:37]} 47. Kd3 {[%clk 0:00:56]} 47... Kb4 {[%clk
0:05:31]} 48. Kc2 {[%clk 0:01:17]} 48... a4 {[%clk 0:05:40]} 49. Kb1 {[%clk
0:01:44]} 49... Be5 {[%clk 0:05:27]} 50. Ka2 {[%clk 0:02:00]} 50... a3 {[%clk
0:04:53]} 51. Ba6 {[%clk 0:02:21]} 51... Bd6 {[%clk 0:04:41]} 52. Bb5 {[%clk
0:02:42]} 52... Kc3 {[%clk 0:04:30]} 53. Ba6 {[%clk 0:03:05]} 53... Kd4 {[%clk
0:04:26]} 54. Bb5 {[%clk 0:03:30]} 54... Ke4 {[%clk 0:04:15]} 55. Bd7 {[%clk
0:03:42]} 55... Kf4 {[%clk 0:04:00]} 56. Bc8 {[%clk 0:04:00]} 56... Ke3 {[%clk
0:03:53]} 57. Bd7 {[%clk 0:04:25]} 57... Kd4 {[%clk 0:03:59]} 58. Bb5 {[%clk
0:04:18]} 58... Kc5 {[%clk 0:03:55]} 59. Kb3 {[%clk 0:04:25]} 59... Kd4 {[%clk
0:03:39]} 60. Ka2 {[%clk 0:04:50]} 60... Kc3 {[%clk 0:03:57]} 61. Ba6 {[%clk
0:05:17]} 61... Kb4 {[%clk 0:03:57]} 62. Bb5 {[%clk 0:05:40]} 1/2-1/2

[Variant "Standard"]
[Site "Europe Echecs"]

[Event "Championnat du monde jeunes U12F"]
[Date "2024.11.18"]
[White "Pavithra R V"]
[Black "Potikha, Shelley"]
[WhiteElo "1854"]
[BlackElo "1561"]
[Round "4.24"]
[Result "1-0"]
[TimeControl "5400+30"]

1. e4 {[%clk 1:30:57]} 1... e6 {[%clk 1:29:43]} 2. d4 {[%clk 1:31:16]} 2... d5
{[%clk 1:30:08]} 3. e5 {[%clk 1:31:39]} 3... c5 {[%clk 1:30:34]} 4. c3 {[%clk
1:32:01]} 4... Nc6 {[%clk 1:30:53]} 5. Nf3 {[%clk 1:32:19]} 5... Bd7 {[%clk
1:30:57]} 6. a3 {[%clk 1:32:36]} 6... Qb6 {[%clk 1:30:55]} 7. Be2 {[%clk
1:32:21]} 7... Rc8 {[%clk 1:21:01]} 8. O-O {[%clk 1:28:42]} 8... cxd4 {[%clk
1:18:08]} 9. cxd4 {[%clk 1:29:05]} 9... Nge7 {[%clk 1:16:34]} 10. b4 {[%clk
1:26:53]} 10... Nf5 {[%clk 1:12:14]} 11. Bb2 {[%clk 1:25:28]} 11... Be7 {[%clk
1:05:49]} 12. h3 {[%clk 1:21:12]} 12... O-O {[%clk 1:03:37]} 13. Bd3 {[%clk
1:19:55]} 13... Kh8 {[%clk 0:47:39]} 14. Bxf5 {[%clk 1:10:43]} 14... exf5 {[%clk
0:47:55]} 15. Nc3 {[%clk 1:11:01]} 15... Be6 {[%clk 0:40:30]} 16. Na4 {[%clk
1:09:26]} 16... Qb5 {[%clk 0:38:59]} 17. Nc5 {[%clk 1:07:56]} 17... b6 {[%clk
0:33:56]} 18. Nd3 {[%clk 1:07:57]} 18... Qa6 {[%clk 0:27:18]} 19. Nf4 {[%clk
1:00:28]} 19... Qb7 {[%clk 0:24:09]} 20. h4 {[%clk 0:49:12]} 20... Qd7 {[%clk
0:18:55]} 21. Ng5 {[%clk 0:48:02]} 21... h6 {[%clk 0:16:38]} 22. Ngxe6 {[%clk
0:47:38]} 22... fxe6 {[%clk 0:15:39]} 23. Ng6+ {[%clk 0:47:58]} 23... Kg8 {[%clk
0:15:47]} 24. Nxf8 {[%clk 0:48:15]} 24... Rxf8 {[%clk 0:15:08]} 25. h5 {[%clk
0:47:51]} 25... f4 {[%clk 0:14:19]} 26. Qf3 {[%clk 0:47:16]} 26... b5 {[%clk
0:12:46]} 27. Rac1 {[%clk 0:45:38]} 27... a5 {[%clk 0:11:44]} 28. Qc3 {[%clk
0:44:04]} 28... Na7 {[%clk 0:07:25]} 29. Qc7 {[%clk 0:43:47]} 29... Qxc7 {[%clk
0:07:19]} 30. Rxc7 {[%clk 0:44:05]} 30... Nc8 {[%clk 0:07:21]} 31. Rfc1 {[%clk
0:44:26]} 1-0

[Variant "Standard"]
[Site "Europe Echecs"]

[Event "Championnat du monde jeunes U12F"]
[Date "2024.11.18"]
[White "Chichinadze, Anastasia"]
[Black "Sunea, Sara Maria"]
[WhiteElo "1682"]
[BlackElo "1823"]
[Round "4.25"]
[Result "1-0"]
[TimeControl "5400+30"]

1. e4 {[%clk 1:30:57]} 1... c5 {[%clk 1:30:53]} 2. Nf3 {[%clk 1:31:25]} 2... Nc6
{[%clk 1:31:17]} 3. Nc3 {[%clk 1:30:28]} 3... e5 {[%clk 1:31:26]} 4. g3 {[%clk
1:30:37]} 4... d6 {[%clk 1:31:34]} 5. Bg2 {[%clk 1:31:02]} 5... g6 {[%clk
1:31:48]} 6. d3 {[%clk 1:31:27]} 6... Bg7 {[%clk 1:31:52]} 7. Be3 {[%clk
1:30:46]} 7... Nge7 {[%clk 1:32:04]} 8. Qd2 {[%clk 1:30:50]} 8... Nd4 {[%clk
1:25:25]} 9. O-O {[%clk 1:23:35]} 9... O-O {[%clk 1:24:39]} 10. Ne2 {[%clk
1:20:49]} 10... Nxe2+ {[%clk 1:15:15]} 11. Qxe2 {[%clk 1:21:05]} 11... h6 {[%clk
1:15:38]} 12. c3 {[%clk 1:15:10]} 12... f5 {[%clk 1:10:19]} 13. Qd2 {[%clk
1:08:06]} 13... Kh7 {[%clk 1:10:31]} 14. Ne1 {[%clk 1:04:34]} 14... Nc6 {[%clk
1:07:17]} 15. f4 {[%clk 1:01:30]} 15... Qe7 {[%clk 1:01:54]} 16. Nf3 {[%clk
1:00:12]} 16... Be6 {[%clk 0:55:59]} 17. fxe5 {[%clk 0:51:35]} 17... dxe5 {[%clk
0:55:05]} 18. exf5 {[%clk 0:48:47]} 18... gxf5 {[%clk 0:53:40]} 19. Nh4 {[%clk
0:45:44]} 19... Rac8 {[%clk 0:38:59]} 20. Nxf5 {[%clk 0:40:16]} 20... Bxf5
{[%clk 0:29:38]} 21. Rxf5 {[%clk 0:40:37]} 21... Rxf5 {[%clk 0:24:15]} 22. Be4
{[%clk 0:41:01]} 22... Qd7 {[%clk 0:20:14]} 23. g4 {[%clk 0:39:18]} 23... Ne7
{[%clk 0:18:08]} 24. gxf5 {[%clk 0:38:11]} 24... Kh8 {[%clk 0:13:45]} 25. Rf1
{[%clk 0:34:26]} 25... Ng8 {[%clk 0:11:35]} 26. f6 {[%clk 0:32:50]} 26... Bxf6
{[%clk 0:08:14]} 27. Bxh6 {[%clk 0:30:43]} 27... Qg4+ {[%clk 0:08:32]} 28. Qg2
{[%clk 0:28:32]} 28... Nxh6 {[%clk 0:06:22]} 29. Rxf6 {[%clk 0:28:50]} 29...
Qd1+ {[%clk 0:04:09]} 30. Qf1 {[%clk 0:22:02]} 30... Rg8+ {[%clk 0:02:34]} 31.
Kh1 {[%clk 0:20:21]} 31... Qxf1+ {[%clk 0:02:31]} 32. Rxf1 {[%clk 0:20:46]}
32... Rg5 {[%clk 0:01:03]} 33. Bxb7 {[%clk 0:19:03]} 33... Kg7 {[%clk 0:01:20]}
34. Bc8 {[%clk 0:16:49]} 34... Ng4 {[%clk 0:00:46]} 35. Bxg4 {[%clk 0:17:09]}
35... Rxg4 {[%clk 0:01:15]} 36. Rg1 {[%clk 0:17:32]} 36... Rxg1+ {[%clk
0:01:34]} 37. Kxg1 {[%clk 0:17:59]} 37... a5 {[%clk 0:01:41]} 38. Kf2 {[%clk
0:18:15]} 38... Kf6 {[%clk 0:02:05]} 39. Kf3 {[%clk 0:18:40]} 39... Kf5 {[%clk
0:02:32]} 40. h4 {[%clk 0:19:07]} 1-0

[Variant "Standard"]
[Site "Europe Echecs"]